bitfinex-derivatives/quotes_ETHF0:USTF0_20250712
["timestamp","ask_amount","ask_price","bid_price","bid_amount"]
[1752311310068,48.6194,2966.6,2966.5,6.32781]
[1752311315573,47.7054,2966.6,2966.5,6.32781]
[1752311315775,48.6194,2966.6,2966.5,6.32781]
[1752311320479,47.6671,2966.6,2966.5,6.32781]
[1752311320779,2.4904,2967.0,2966.9,1.29992]
[1752311320979,48.5984,2967.0,2966.9,3.11992]
[1752311321981,48.5984,2967.0,2966.9,0.67382]
[1752311321982,49.43891584,2967.0,2966.9,0.67382]
[1752311322482,49.43891584,2967.0,2966.9,1.29992]
[1752311323282,50.11271584,2967.0,2966.9,0.67382]
[1752311323583,49.43891584,2967.0,2966.9,0.67382]
[1752311324186,49.43891584,2967.0,2966.9,1.29992]
[1752311325787,49.43891584,2967.0,2966.9,2.24072]
[1752311327579,49.43891584,2967.0,2966.9,1.29992]
[1752311329187,49.43891584,2967.0,2966.9,2.24072]
[1752311330189,49.43891584,2967.0,2966.9,1.29992]
[1752311333094,48.5984,2967.0,2966.9,3.16652]
[1752311340498,49.2722,2967.0,2966.9,2.24072]
[1752311340697,48.5984,2967.0,2966.9,2.24072]
[1752311340897,48.5984,2967.0,2966.9,3.16652]
[1752311342904,49.2722,2967.0,2966.9,3.16652]
[1752311343103,48.5984,2967.0,2966.9,2.24072]
[1752311343402,48.5984,2967.0,2966.9,1.29992]
[1752311343598,48.5984,2967.0,2966.9,2.24072]
[1752311343805,48.5984,2967.0,2966.9,3.16652]
[1752311344803,48.5984,2967.0,2966.9,1.29992]
[1752311346104,48.5984,2967.0,2966.9,2.24072]
[1752311346305,48.5984,2967.0,2966.9,3.16652]
[1752311347306,48.5984,2967.0,2966.9,2.24072]
[1752311347503,48.5984,2967.0,2966.9,1.29992]
[1752311347703,49.2722,2967.0,2966.9,0.67382]
[1752311347901,48.5984,2967.0,2966.9,0.67382]
[1752311348101,48.5984,2967.0,2966.9,3.14022]
[1752311350108,49.39132254,2967.0,2966.9,3.14022]
[1752311351513,50.06512254,2967.0,2966.9,2.21442]
[1752311351707,2.25462,2966.9,2966.8,3.88164]
[1752311351913,3.29524636,2966.9,2966.8,4.48144]
[1752311352107,3.17552,2966.9,2966.8,5.42224]
[1752311352411,3.17552,2966.9,2966.8,3.88164]
[1752311352412,3.96907979,2966.9,2966.8,3.88164]
[1752311353412,3.96907979,2966.9,2966.8,0.67384]
[1752311354310,3.29525979,2966.9,2966.8,0.67384]
[1752311355614,3.96907979,2966.9,2966.8,0.67384]
[1752311355911,3.96905583,2966.9,2966.8,0.67384]
[1752311356714,3.09715583,2966.9,2966.8,0.67384]
[1752311357314,4.02015583,2966.9,2966.8,0.67384]
[1752311357510,2.5739,2966.8,2966.7,3.2078]
[1752311357716,48.6419,2966.8,2966.7,4.7464]
[1752311357917,48.6419,2966.8,2966.7,6.38237]
[1752311359824,46.068,2966.8,2966.7,7.22288584]
[1752311360721,2.5739,2967.2,2967.1,1.27927]
[1752311360918,49.43398513,2967.2,2967.1,1.27927]
[1752311361120,46.86008513,2967.2,2967.1,1.27927]
[1752311361321,46.86008513,2967.2,2967.1,3.17447]
[1752311361714,46.067,2967.2,2967.1,3.17447]
[1752311362010,47.9809,2967.2,2967.1,3.17447]
[1752311363020,47.0579,2967.2,2967.1,3.17447]
[1752311364122,47.9809,2967.2,2967.1,3.17447]
[1752311364821,47.9809,2967.2,2967.1,2.21237]
[1752311365018,47.9809,2967.2,2967.1,0.67377]
[1752311365019,49.49516584,2967.2,2967.1,0.67377]
[1752311367121,48.82141584,2967.2,2967.1,1.27927]
[1752311367420,47.9809,2967.2,2967.1,3.17447]
[1752311368623,47.0579,2967.2,2967.1,3.17447]
[1752311369622,47.9809,2967.2,2967.1,3.17447]
[1752311374326,47.9809,2967.2,2967.1,6.38227]
[1752311377229,49.49516584,2967.2,2967.1,3.2078]
[1752311377527,48.82141584,2967.2,2967.1,3.88157]
[1752311377921,49.49516584,2967.2,2967.1,3.88157]
[1752311379122,49.49516584,2967.2,2967.1,3.2078]
[1752311379920,49.49516584,2967.2,2967.1,3.88157]
[1752311380426,49.49516584,2967.2,2967.1,3.2078]
[1752311381424,49.49516584,2967.2,2967.1,3.88157]
[1752311384433,49.49516584,2967.2,2967.1,3.2078]
[1752311385438,49.49516584,2967.2,2967.1,3.88157]
[1752311389542,49.49516584,2967.2,2967.1,3.2078]
[1752311390142,50.29538821,2967.2,2967.1,3.88157]
[1752311390442,50.29538821,2967.2,2967.1,3.2078]
[1752311390637,49.49516584,2967.2,2967.1,3.2078]
[1752311391038,50.29538618,2967.2,2967.1,3.2078]
[1752311393844,50.29538618,2967.2,2967.1,3.88157]
[1752311394045,49.49516584,2967.2,2967.1,3.2078]
[1752311394944,50.29532977,2967.2,2967.1,3.2078]
[1752311401150,50.29532977,2967.2,2967.1,3.8654]
[1752311401451,50.29532977,2967.2,2967.1,3.2078]
[1752311404749,50.29532977,2967.2,2967.1,3.88157]
[1752311405150,50.29532977,2967.2,2967.1,3.2078]
[1752311405649,50.29532977,2967.2,2967.1,3.88157]
[1752311406344,50.29532977,2967.2,2967.1,0.67377]
[1752311406545,49.38806393,2967.2,2967.1,3.26127]
[1752311406751,46.82816393,2967.2,2967.1,3.26127]
[1752311408649,46.027,2967.5,2967.4,1.4706]
[1752311408849,46.82769193,2967.5,2967.4,6.85022584]
[1752311409547,0.80069193,2967.5,2967.4,6.85022584]
[1752311409852,1.77329193,2967.5,2967.4,6.85022584]
[1752311410048,0.80069193,2967.5,2967.4,11.85022584]
[1752311410250,48.20643684,2968.0,2967.9,1.63229]
[1752311410452,46.9986,2968.0,2967.9,4.84009]
[1752311410650,47.22983684,2968.1,2968.0,0.67357]
[1752311410851,48.20243684,2968.1,2968.0,1.63227]
[1752311411050,46.9946,2968.1,2968.0,1.63227]
[1752311412758,0.9726,2968.1,2968.0,1.63227]
[1752311413646,1.6186,2968.1,2968.0,1.63227]
[1752311413850,2.5997,2968.1,2968.0,1.63227]
[1752311421562,2.5997,2968.1,2968.0,0.67357]
[1752311421762,2.5997,2968.1,2968.0,1.64897]
[1752311422561,1.6186,2968.1,2968.0,1.64897]
[1752311422862,2.5996,2968.1,2968.0,1.64897]
[1752311423263,0.9726,2968.1,2968.0,2.48948584]
[1752311423562,46.9176,2968.3,2968.2,1.64892]
[1752311423762,47.8986,2968.3,2968.2,4.85672]
[1752311426066,48.5721,2968.3,2968.2,4.85672]
[1752311426365,47.8986,2968.3,2968.2,4.85672]
[1752311428068,48.5721,2968.3,2968.2,4.85672]
[1752311429263,48.5721,2968.3,2968.2,3.88132]
[1752311429463,49.41261584,2968.3,2968.2,3.88132]
[1752311431467,48.73911584,2968.3,2968.2,3.88132]
[1752311431669,49.41261584,2968.3,2968.2,4.85672]
[1752311433269,49.41261584,2968.3,2968.2,3.88132]
[1752311433972,49.41261584,2968.3,2968.2,4.85672]
[1752311434473,49.41261584,2968.3,2968.2,3.88132]
[1752311435166,49.41261584,2968.3,2968.2,3.2078]
[1752311438377,3.16505,2968.1,2968.0,3.88135]
[1752311438578,49.99656584,2968.1,2968.0,3.88135]
[1752311439174,49.99656584,2968.1,2968.0,3.2078]
[1752311439475,3.16512,2967.8,2967.7,3.2078]
[1752311439772,0.5979,2967.5,2967.4,6.61248853]
[1752311439980,49.99569584,2967.5,2967.4,5.63548853]
[1752311440170,1.27163,2967.3,2967.2,1.64914]
[1752311440367,49.99574584,2967.3,2967.2,1.64914]
[1752311440572,49.99574584,2967.3,2967.2,0.9754]
[1752311440773,49.99574584,2967.3,2967.2,1.64915]
[1752311441075,48.4815,2967.3,2967.2,1.64915]
[1752311441275,48.4815,2967.3,2967.2,1.65075]
[1752311441782,49.15523,2967.3,2967.2,1.65075]
[1752311442480,49.15523,2967.3,2967.2,1.64915]
[1752311442880,49.15523,2967.3,2967.2,0.9754]
[1752311443280,49.15523,2967.3,2967.2,1.64915]
[1752311445078,49.15523,2967.3,2967.2,4.85695]
[1752311445784,46.9026,2967.3,2967.2,4.85695]
[1752311447682,47.8755,2967.3,2967.2,4.85695]
[1752311449789,47.8755,2967.3,2967.2,1.64915]
[1752311449989,48.54923,2967.3,2967.2,4.85695]
[1752311450190,47.8755,2967.3,2967.2,4.85695]
[1752311451390,48.54923,2967.3,2967.2,4.85695]
[1752311451993,48.54923,2967.3,2967.2,1.64915]
[1752311452193,47.8755,2967.3,2967.2,4.85695]
[1752311455992,46.9026,2967.3,2967.2,4.85695]
[1752311456795,47.8755,2967.3,2967.2,4.85695]
[1752311457293,2.4975,2967.3,2967.2,4.85695]
[1752311458892,46.9372,2967.5,2967.4,0.67371]
[1752311459091,46.9372,2967.5,2967.4,2.48402584]
[1752311459997,0.9472,2967.5,2967.4,2.48402584]
[1752311460698,1.5592,2967.5,2967.4,2.48402584]
[1752311461090,0.9472,2967.5,2967.4,2.48402584]
[1752311461698,46.9352,2967.7,2967.6,0.67366]
[1752311461994,46.9352,2967.7,2967.2,3.88155]
[1752311461995,3.20583,2967.3,2967.2,3.88155]
[1752311462195,27.03934584,2967.3,2967.2,3.2078]
[1752311466601,25.5891,2967.3,2967.2,4.1776]
[1752311466901,26.26283,2967.3,2967.2,4.85135]
[1752311470294,25.5891,2967.3,2967.2,4.85135]
[1752311470499,26.26283,2967.3,2967.2,4.85135]
[1752311470705,3.20583,2967.3,2967.2,4.85135]
[1752311472006,3.20583,2967.3,2967.2,1.64355]
[1752311472207,3.20583,2967.3,2967.2,4.85135]
[1752311474607,3.20583,2967.3,2967.2,1.64355]
[1752311474805,3.20583,2967.3,2967.2,4.85135]
[1752311475708,3.20583,2967.3,2967.2,4.1776]
[1752311476007,3.20583,2967.3,2967.2,3.2078]
[1752311476008,4.04634584,2967.3,2967.2,3.2078]
[1752311476904,1.31235,2967.2,2967.1,0.67377]
[1752311477106,25.29435,2967.2,2967.1,0.67377]
[1752311477307,26.24635,2967.2,2967.1,0.67377]
[1752311477508,2.26337,2967.1,2967.0,4.78358]
[1752311477811,4.05588584,2967.1,2967.0,3.2078]
[1752311480609,4.05588584,2967.1,2967.0,3.8816]
[1752311480809,4.05588584,2967.1,2967.0,3.2078]
[1752311481410,4.05588584,2967.1,2967.0,3.8816]
[1752311482810,4.05588584,2967.1,2967.0,3.2078]
[1752311483010,4.05588584,2967.1,2967.0,3.8816]
[1752311484009,4.05588584,2967.1,2967.0,4.7836]
[1752311487216,4.05588584,2967.1,2967.0,1.5758]
[1752311489017,2.5416,2967.1,2967.0,1.5758]
[1752311493020,3.21537,2967.1,2967.0,1.5758]
[1752311494123,4.05588584,2967.1,2967.0,0.6738]
[1752311495720,3.38211584,2967.1,2967.0,0.6738]
[1752311495916,2.5416,2967.1,2967.0,1.5758]
[1752311496423,3.21537,2967.1,2967.0,1.5758]
[1752311496720,2.5416,2967.1,2967.0,1.5758]
[1752311497421,1.5906,2967.1,2967.0,1.5758]
[1752311497825,2.5416,2967.1,2967.0,1.5758]
[1752311501622,0.952,2967.1,2967.0,1.5758]
[1752311501828,23.951,2967.3,2967.2,1.57575]
[1752311502027,1.74712706,2967.3,2967.2,4.78355]
[1752311503424,23.9394,2967.5,2967.4,1.57651]
[1752311503726,0.9404,2967.5,2967.4,1.57651]
[1752311504525,0.9404,2967.5,2967.4,2.41702584]
[1752311504720,2.04835268,2968.1,2968.0,0.67357]
[1752311504721,3.33941584,2968.1,2968.0,0.67357]
[1752311504918,27.1322422,2968.1,2968.0,0.67357]
[1752311505526,27.8058022,2968.1,2968.0,0.67357]
[1752311506425,2.25427,2968.0,2967.9,1.57558]
[1752311506623,3.98949636,2968.0,2967.9,1.57558]
[1752311506824,3.31592636,2968.0,2967.9,1.57558]
[1752311507530,3.19467,2968.0,2967.9,1.57558]
[1752311507930,3.19467,2968.0,2967.9,0.67358]
[1752311511735,3.19467,2968.0,2967.9,3.88138]
[1752311513336,3.19467,2968.0,2967.9,0.67358]
[1752311513537,3.19467,2968.0,2967.9,3.88138]
[1752311514135,3.19467,2968.0,2967.9,0.67358]
[1752311514340,3.19467,2968.0,2967.9,3.88138]
[1752311514738,3.19467,2968.0,2967.9,4.85798]
[1752311515236,0.9404,2968.0,2967.9,4.85878]
[1752311516433,1.5479,2968.0,2967.9,4.85878]
[1752311516630,2.5211,2968.0,2967.9,4.85798]
[1752311517741,0.9404,2968.0,2967.9,4.85798]
[1752311518040,2.5211,2968.3,2968.2,1.65012]
[1752311519343,3.1946,2968.3,2968.2,1.65012]
[1752311519543,2.5211,2968.3,2968.2,1.65012]
[1752311519746,3.36161584,2968.3,2968.2,1.65012]
[1752311523048,3.36161584,2968.3,2968.2,4.85792]
[1752311523851,4.03511584,2968.3,2968.2,4.85792]
[1752311524253,3.36161584,2968.3,2968.2,4.85792]
[1752311529957,3.36399879,2968.3,2968.2,4.85792]
[1752311534560,0.94278295,2968.3,2968.2,4.85792]
[1752311535160,0.00238295,2968.3,2968.2,5.69843584]
[1752311536359,0.00238295,2968.3,2968.2,4.85792]
[1752311536559,0.97908295,2968.3,2968.2,4.85792]
[1752311536858,2.61538295,2968.3,2968.2,4.85792]
[1752311539563,1.63368295,2968.3,2968.2,4.85792]
[1752311540364,0.97908295,2968.3,2968.2,4.85792]
[1752311544466,2.61538295,2968.3,2968.2,3.88132]
[1752311546665,2.61538295,2968.3,2968.2,4.85702]
[1752311548361,0.97908295,2968.3,2968.2,4.85702]
[1752311548762,1.63368295,2968.3,2968.2,4.85702]
[1752311548963,2.61538295,2968.3,2968.2,4.85702]
[1752311554068,2.61538295,2968.3,2968.2,3.88132]
[1752311557368,2.61538295,2968.3,2968.2,1.64922]
[1752311557966,2.61538295,2968.3,2968.2,0.67352]
[1752311559173,2.61538295,2968.3,2968.2,3.88132]
[1752311559573,2.61538295,2968.3,2968.2,0.67352]
[1752311560170,3.28888295,2968.3,2968.2,0.67352]
[1752311560574,2.61538295,2968.3,2968.2,3.88132]
[1752311561277,3.28888295,2968.3,2968.2,3.88132]
[1752311561765,2.61538295,2968.3,2968.2,3.88132]
[1752311562481,3.28888295,2968.3,2968.2,3.88132]
[1752311562978,2.61538295,2968.3,2968.2,3.88132]
[1752311563579,2.61538295,2968.3,2968.2,4.85702]
[1752311565176,2.61538295,2968.3,2968.2,3.88132]
[1752311565573,3.28888295,2968.3,2968.0,0.9674]
[1752311565873,0.67355,2968.1,2968.0,0.67355]
[1752311566070,2.29225,2968.1,2968.0,0.67355]
[1752311566480,3.23745,2968.1,2968.0,0.67355]
[1752311567782,3.23747,2968.0,2967.9,3.2078]
[1752311567976,0.67359,2967.9,2967.8,2.42768853]
[1752311568179,2.29231,2967.8,2967.7,2.42768853]
[1752311568377,1.31134,2967.7,2967.6,3.10133853]
[1752311568677,4.07805584,2967.7,2967.6,3.10133853]
[1752311569270,4.07805584,2967.7,2967.6,3.09673544]
[1752311569475,4.07805584,2967.7,2967.6,0.67365]
[1752311569978,0.67366,2967.6,2967.5,3.88147]
[1752311570179,3.23756,2967.6,2967.5,3.88147]
[1752311570885,2.5639,2967.6,2967.5,3.88147]
[1752311571078,2.5639,2967.6,2967.5,4.84887]
[1752311574179,2.5639,2967.6,2967.5,1.64107]
[1752311574379,2.5639,2967.6,2967.5,4.84887]
[1752311575679,0.9452,2967.6,2967.5,4.84887]
[1752311578182,1.5829,2967.6,2967.5,4.84887]
[1752311578387,2.5639,2967.6,2967.5,4.84887]
[1752311578785,1.5829,2967.6,2967.5,4.84887]
[1752311580683,2.5639,2967.6,2967.5,4.84887]
[1752311583887,1.5829,2967.6,2967.5,4.84887]
[1752311587488,2.5639,2967.6,2967.5,4.84887]
[1752311588286,1.5829,2967.6,2967.5,4.84887]
[1752311588486,0.9452,2967.6,2967.5,4.84887]
[1752311590292,3.23743,2968.2,2968.1,0.67352]
[1752311590487,4.03111641,2968.2,2968.1,0.67352]
[1752311592297,3.23743,2968.2,2968.1,0.67352]
[1752311592592,3.23745,2968.1,2968.0,3.88136]
[1752311592792,4.07796584,2968.1,2968.0,3.88136]
[1752311596897,4.07796584,2968.1,2968.0,0.67356]
[1752311597199,4.07796584,2968.1,2968.0,3.88136]
[1752311600005,4.07796584,2968.1,2968.0,0.67356]
[1752311600202,4.07796584,2968.1,2968.0,3.88136]
[1752311600402,3.40441584,2968.1,2968.0,3.88136]
[1752311600704,4.07796584,2968.1,2968.0,4.82446]
[1752311600999,3.40441584,2968.1,2968.0,4.82446]
[1752311601205,1.5829,2968.1,2968.0,4.82446]
[1752311601701,0.96638295,2968.3,2968.2,1.61662]
[1752311602096,0.96638295,2968.3,2968.2,4.04113421]
[1752311602300,0.96638295,2968.3,2968.2,1.61662]
[1752311603305,2.48128295,2968.3,2968.2,1.61662]
[1752311607709,2.48128295,2968.3,2968.2,4.82442]
[1752311608513,1.57988295,2968.3,2968.2,4.82442]
[1752311610008,2.48128295,2968.3,2968.2,4.82442]
[1752311610912,2.48128295,2968.3,2968.2,3.88132]
[1752311611213,3.15478295,2968.3,2968.2,3.88132]
[1752311611713,2.48128295,2968.3,2968.2,3.88132]
[1752311612412,2.48128295,2968.3,2968.2,4.82442]
[1752311612711,2.4789,2968.3,2968.2,4.82442]
[1752311613416,2.4789,2968.3,2968.2,3.88132]
[1752311613715,3.1524,2968.3,2968.2,0.67352]
[1752311613911,1.28704,2968.2,2968.1,0.67352]
[1752311614112,3.99295584,2968.2,2968.1,0.67352]
[1752311615115,2.18845,2968.1,2968.0,0.67355]
[1752311615416,3.99296584,2968.1,2968.0,0.67355]
[1752311616610,1.28707,2968.0,2967.9,3.88138]
[1752311616817,3.15247,2968.0,2967.9,3.2078]
[1752311617016,3.15247,2968.0,2967.9,3.88139]
[1752311617217,3.15247,2968.0,2967.9,3.2078]
[1752311617418,2.18852,2967.8,2967.7,0.67363]
[1752311617618,3.99303584,2967.8,2967.7,0.67363]
[1752311622418,3.31941584,2967.8,2967.7,0.67363]
[1752311623620,3.99303584,2967.8,2967.7,0.67363]
[1752311626623,3.27954,2967.7,2967.6,3.88144]
[1752311627524,1.31576,2967.6,2967.5,2.42451421]
[1752311627720,2.29818,2967.5,2967.4,0.6737]
[1752311628024,3.27958,2967.5,2967.4,2.42451421]
[1752311628323,3.27961,2967.4,2967.3,3.09822421]
[1752311628522,4.12012584,2967.4,2967.3,3.09822421]
[1752311628823,3.44641584,2967.4,2967.3,3.09822421]
[1752311629122,3.44641584,2967.4,2967.3,1.61231]
[1752311629729,2.6059,2967.4,2967.3,1.61231]
[1752311633830,2.6059,2967.7,2967.6,0.67366]
[1752311634028,1.6245,2967.7,2967.6,4.82006]
[1752311634630,0.9824,2967.7,2967.6,4.82006]
[1752311634825,2.6059,2967.7,2967.6,4.82006]
[1752311636933,1.6245,2967.7,2967.6,4.82006]
[1752311638229,2.6059,2967.7,2967.6,4.82006]
[1752311640228,4.12005584,2967.7,2967.6,4.82006]
[1752311640635,3.44641584,2967.7,2967.6,4.82006]
[1752311640827,4.12005584,2967.7,2967.6,3.88146]
[1752311641034,1.31582,2967.5,2967.4,3.88149]
[1752311641332,4.12013584,2967.5,2967.4,3.88149]
[1752311641730,4.12013584,2967.5,2967.4,0.67369]
[1752311642834,4.12013584,2967.5,2967.4,3.88149]
[1752311644132,3.44641584,2967.5,2967.4,3.88149]
[1752311645434,4.12009584,2967.5,2967.4,3.88149]
[1752311645634,3.44641584,2967.5,2967.4,3.88149]
[1752311646540,2.6059,2967.5,2967.4,3.88149]
[1752311646839,3.44641584,2967.5,2967.4,3.88149]
[1752311647040,4.12009584,2967.5,2967.4,3.88149]
[1752311647241,3.44641584,2967.5,2967.4,3.88149]
[1752311647639,3.44641584,2967.5,2967.4,0.67369]
[1752311647939,3.44641584,2967.5,2967.4,3.88149]
[1752311649142,3.44641584,2967.5,2967.4,0.67369]
[1752311649343,3.44641584,2967.5,2967.4,3.88149]
[1752311650133,4.12009584,2967.5,2967.4,3.88149]
[1752311650333,3.44641584,2967.5,2967.4,3.88149]
[1752311650542,4.12009584,2967.5,2967.4,3.88151]
[1752311651043,3.27963,2967.3,2967.2,3.09436903]
[1752311651245,4.12014584,2967.3,2967.2,0.67374]
[1752311653939,3.44641584,2967.3,2967.2,0.67374]
[1752311654144,3.44641584,2967.3,2967.2,1.61234]
[1752311654351,4.12014584,2967.3,2967.2,1.61234]
[1752311654851,3.44641584,2967.3,2967.2,1.61234]
[1752311657153,3.44641584,2967.3,2967.2,0.67374]
[1752311657945,4.12014584,2967.3,2967.2,0.67374]
[1752311658449,2.6059,2967.3,2967.2,1.62634]
[1752311658650,3.44641584,2967.3,2967.2,1.62634]
[1752311659952,4.12014584,2967.3,2967.2,1.62634]
[1752311660152,3.44641584,2967.3,2967.2,1.62634]
[1752311660954,4.12014584,2967.3,2967.2,1.62634]
[1752311661552,3.44641584,2967.3,2967.2,1.62634]
[1752311662155,4.12014584,2967.3,2967.2,4.83414]
[1752311662348,1.6245,2967.3,2967.2,4.83414]
[1752311664856,0.9824,2967.3,2967.2,4.83414]
[1752311666256,2.5225,2967.3,2967.2,4.83414]
[1752311668156,0.9824,2967.3,2967.2,4.83414]
[1752311669358,1.5883,2967.3,2967.2,4.83414]
[1752311669854,2.5225,2967.3,2967.2,4.83414]
[1752311680171,2.5225,2967.3,2967.2,7.25835753]
[1752311680768,2.5225,2967.3,2967.2,4.05055753]
[1752311680972,2.5225,2967.3,2967.2,7.25835753]
[1752311681177,2.5225,2967.3,2967.2,4.05055753]
[1752311681365,2.5225,2967.3,2967.2,7.25835753]
[1752311682674,2.5225,2967.3,2967.2,4.83414]
[1752311683276,4.03674584,2967.3,2967.2,3.88154]
[1752311683476,3.36301584,2967.3,2967.2,3.88154]
[1752311685778,3.36301584,2967.3,2967.2,0.67374]
[1752311685977,3.36301584,2967.3,2967.2,3.88154]
[1752311686877,3.36301584,2967.3,2967.2,0.67374]
[1752311687275,3.36301584,2967.3,2967.2,3.88154]
[1752311688878,4.03674584,2967.3,2967.2,3.88154]
[1752311689178,2.5225,2967.3,2967.2,4.80794]
[1752311696985,2.5225,2967.3,2967.2,1.60014]
[1752311697381,2.5225,2967.3,2967.2,4.80794]
[1752311697679,2.5225,2967.3,2967.2,1.60014]
[1752311697984,2.5225,2967.3,2967.2,4.80794]
[1752311699784,2.5225,2967.3,2967.2,7.23215753]
[1752311700282,1.5883,2967.3,2967.2,7.23215753]
[1752311700876,0.9824,2967.3,2967.2,7.23215753]
[1752311701481,0.84051584,2967.9,2967.2,6.55841753]
[1752311701781,0.929,2967.7,2967.6,3.88146]
[1752311701983,0.937,2967.7,2967.6,4.72197584]
[1752311702182,0.937,2967.7,2967.6,5.64837584]
[1752311702784,0.937,2967.7,2967.6,4.80786]
[1752311702987,2.4637,2967.7,2967.6,4.80786]
[1752311703384,3.30421584,2967.7,2967.6,4.80786]
[1752311704989,2.4637,2967.7,2967.6,4.80786]
[1752311707189,3.30421584,2967.7,2967.6,3.88146]
[1752311709290,3.97785584,2967.7,2967.6,3.88146]
[1752311715086,2.4637,2967.7,2967.6,4.80786]
[1752311717898,2.4842,2967.7,2967.6,4.80786]
[1752311722693,0.937,2967.7,2967.6,4.80786]
[1752311725898,2.4842,2967.7,2967.6,4.80786]
[1752311729201,2.4842,2967.7,2967.6,7.23207753]
[1752311736900,0.00505706,2968.5,2967.6,10.63201753]
[1752311737108,0.94025706,2968.5,2968.4,2.46109584]
[1752311738103,0.00505706,2968.5,2968.4,2.46109584]
[1752311738409,0.94025706,2968.5,2968.4,2.46109584]
[1752311738908,0.94025706,2968.5,2968.4,4.88531337]
[1752311739305,0.94025706,2968.5,2968.4,2.46109584]
[1752311742406,1.5337,2969.2,2968.4,5.84051584]
[1752311742613,1.5337,2969.2,2969.1,5.66873584]
[1752311743312,2.4824,2969.2,2969.1,4.82822]
[1752311743612,0.5985,2970.1,2970.0,2.25752]
[1752311743810,0.5985,2970.1,2970.0,6.25562]
[1752311744006,1.5472,2970.1,2970.0,6.25562]
[1752311744207,1.5472,2970.1,2970.0,5.46532]
[1752311745511,2.4416,2970.1,2970.0,5.46532]
[1752311747014,0.6162,2970.6,2970.5,1.30799]
[1752311747209,1.582,2970.6,2970.5,3.8428]
[1752311747514,1.582,2970.3,2970.2,3.2078]
[1752311747714,2.42251584,2970.3,2970.2,3.2078]
[1752311748012,2.42251584,2970.3,2970.2,3.88087]
[1752311748211,2.42251584,2970.3,2970.2,3.2078]
[1752311748616,2.42251584,2970.3,2970.2,3.88087]
[1752311749114,3.31691584,2970.3,2970.2,3.88087]
[1752311749316,3.31691584,2970.3,2970.2,3.2078]
[1752311749819,3.31691584,2970.3,2970.1,0.67308]
[1752311750012,0.9658,2970.2,2970.1,3.2078]
[1752311750313,3.14954,2969.9,2969.8,3.2078]
[1752311750519,1.5106,2969.5,2969.4,4.51604]
[1752311750820,2.4764,2969.5,2969.4,6.44684]
[1752311751817,2.4764,2969.5,2969.4,5.7736]
[1752311752018,2.4764,2969.5,2969.4,6.44685]
[1752311753117,1.6827,2970.2,2969.8,0.635]
[1752311753118,0.9658,2970.0,2969.8,0.635]
[1752311753317,2.4764,2970.0,2969.9,6.44674]
[1752311754012,1.5106,2970.4,2970.3,3.23885]
[1752311754221,1.5106,2970.4,2970.3,6.44665]
[1752311754611,2.4764,2970.4,2970.3,6.44665]
[1752311755010,2.4764,2971.1,2970.4,1.9308]
[1752311755314,2.4764,2971.1,2971.0,3.23869]
[1752311755511,3.27266125,2971.1,2971.0,1.30789]
[1752311755917,2.4764,2971.1,2971.0,1.30789]
[1752311756217,2.4764,2971.1,2971.0,0.67289]
[1752311756417,3.31691584,2971.1,2971.0,0.67289]
[1752311756617,1.5106,2971.0,2970.9,0.67291]
[1752311756917,3.31691584,2971.0,2970.9,0.67291]
[1752311758212,2.4764,2971.0,2970.9,1.30791]
[1752311758617,2.4764,2971.0,2970.9,3.23871]
[1752311761024,3.31691584,2971.0,2970.9,1.30791]
[1752311761223,2.4764,2971.0,2970.9,3.23871]
[1752311761919,3.2078,2971.7,2971.1,3.23866]
[1752311761920,2.4764,2971.2,2971.1,3.23866]
[1752311762920,3.14924,2971.2,2971.1,3.23866]
[1752311763115,2.4764,2971.2,2971.1,3.23866]
[1752311763724,3.31691584,2971.2,2971.0,3.2078]
[1752311763924,0.6162,2970.8,2970.7,3.88074]
[1752311764117,3.14933,2970.8,2970.7,3.88074]
[1752311764318,3.98984584,2970.8,2970.7,3.88074]
[1752311766130,3.14933,2970.8,2970.7,3.88074]
[1752311766330,3.31691584,2970.8,2970.7,3.88074]
[1752311766831,3.98984584,2970.8,2970.7,3.88074]
[1752311767330,3.31691584,2970.8,2970.7,3.88074]
[1752311767530,3.98984584,2970.8,2970.7,3.88074]
[1752311767932,3.14938,2970.6,2970.5,0.00505706]
[1752311768231,3.98989584,2970.6,2970.5,0.00505706]
[1752311768432,2.4764,2970.2,2970.1,4.51588]
[1752311768633,2.4764,2970.2,2970.1,6.44668]
[1752311769332,3.14947,2970.2,2970.1,6.44668]
[1752311769534,3.14947,2970.2,2970.1,4.51588]
[1752311769834,2.4764,2970.2,2970.1,4.51588]
[1752311770132,2.4764,2970.2,2970.1,6.44668]
[1752311773337,2.4764,2970.2,2970.1,5.47508]
[1752311773635,2.4764,2970.2,2970.1,4.51588]
[1752311773837,2.4764,2970.2,2970.1,3.88088]
[1752311774141,3.14947,2970.2,2970.1,3.88088]
[1752311774439,2.4764,2970.2,2970.1,3.88088]
[1752311775540,2.4764,2970.2,2970.1,6.40708]
[1752311776135,0.9208,2970.7,2970.2,2.30643]
[1752311776440,1.5727,2970.4,2970.3,2.27365]
[1752311776737,2.5392,2970.4,2970.3,1.29685]
[1752311777041,2.5392,2970.4,2970.3,3.19925]
[1752311779143,1.6184,2970.4,2970.3,3.19925]
[1752311779342,2.5392,2970.4,2970.3,3.19925]
[1752311783441,3.37971584,2970.4,2970.3,0.67305]
[1752311783638,2.5392,2970.4,2970.3,0.67305]
[1752311783838,2.5392,2970.4,2970.3,1.29685]
[1752311784043,2.5392,2970.4,2970.3,3.19925]
[1752311788545,2.24567,2970.7,2970.6,3.19918]
[1752311788848,3.04774532,2970.7,2970.6,1.29678]
[1752311789146,4.01424532,2970.7,2970.6,1.29678]
[1752311789547,4.01424532,2970.7,2970.6,2.22238]
[1752311789948,4.01424532,2970.7,2970.6,1.29678]
[1752311790743,2.01424532,2970.7,2970.6,1.29678]
[1752311790951,2.66614532,2970.7,2970.6,2.27358]